[Event "Czech Youth U16 Girls 2024"]
[Site "Kouty nad Desnou"]
[Date "2024.03.10"]
[Round "2.5"]
[White "Cinkova, Vicky"]
[Black "Dobsa, Emma"]
[Result "0-1"]
[ECO "C49"]
[WhiteElo "1682"]
[BlackElo "1750"]
[Annotator "NA RC"]
[PlyCount "92"]
[EventDate "2024.03.10"]
[EventType "swiss"]
[EventCountry "CZE"]
[SourceTitle "playchess.com"]
[Source "ChessBase"]
[SourceQuality "1"]
[TimeControl "40/5400+30:1800+30"]

1. e4 {[%emt 0:00:10]} e5 {[%emt 0:00:04]} 2. Nf3 {[%emt 0:00:05]} Nc6 {[%emt 0:00:05]} 3. Nc3 {[%emt 0:00:23]} Nf6 {[%emt 0:00:06]} 4. Bb5 {[%emt 0:00:08]} Bb4 {[%emt 0:00:09]} 5. O-O {[%emt 0:00:08]} O-O {[%emt 0:00:03]} 6. Bxc6 {[%emt 0:00:08]} dxc6 {[%emt 0:01:06]} 7. d3 {[%emt 0:00:18]} Re8 {[%emt 0:02:55]} 8. Bd2 {[%emt 0:08:13]} Bd6 {[%emt 0:07:48]} 9. Qe2 {[%emt 0:01:24]} Bg4 {[%emt 0:02:28]} 10. h3 {[%emt 0:00:41]} Be6 {[%emt 0:07:04]} 11. Nh2 {[%emt 0:06:26]} a5 {[%emt 0:12:37]} 12. f4 {[%emt 0:09:25]} exf4 {[%emt 0:11:28]} 13. Bxf4 {[%emt 0:00:33]} Bxf4 {[%emt 0:03:15]} 14. Rxf4 {[%emt 0:00:22]} b5 {[%emt 0:01:08]} 15. Raf1 {[%emt 0:05:25]} a4 {[%emt 0:02:44]} 16. e5 {[%emt 0:14:53]} Nd5 {[%emt 0:06:38]} 17. Nxd5 {[%emt 0:08:14]} Bxd5 {[%emt 0:01:12]} 18. a3 {[%emt 0:05:15]} Qg5 {[%emt 0:07:15]} 19. Rf5 {[%emt 0:19:21]} Qg6 {[%emt 0:01:11]} 20. Qg4 {[%emt 0:02:56]} Qxg4 {[%emt 0:02:58]} 21. Nxg4 {[%emt 0:00:06]} Be6 {[%emt 0:01:00]} 22. R5f4 {[%emt 0:00:12]} c5 {[%emt 0:02:44]} 23. Re1 {[%emt 0:03:13]} Red8 {[%emt 0:01:59]} 24. Nf2 {[%emt 0:02:40]} Rd7 {[%emt 0:05:57]} 25. Ne4 {[%emt 0:01:07]} Rd4 {[%emt 0:04:13]} 26. Ref1 {[%emt 0:00:34]} Rd5 {[%emt 0:01:25]} 27. Ng5 {[%emt 0:01:19]} Rxe5 {[%emt 0:01:44]} 28. Nxf7 {[%emt 0:00:25]} Re2 {[%emt 0:02:20]} 29. Ng5 {[%emt 0:01:11]} Bd5 {[%emt 0:00:33]} 30. R4f2 {[%emt 0:00:40]} Rxf2 {[%emt 0:01:54]} 31. Rxf2 {[%emt 0:00:06]} h6 {[%emt 0:01:57]} 32. Nf3 {[%emt 0:05:12]} b4 {[%emt 0:03:33]} 33. Ne5 {[%emt 0:02:15]} bxa3 {[%emt 0:01:34]} 34. bxa3 {[%emt 0:00:06]} Rb8 {[%emt 0:00:09]} 35. c4 {[%emt 0:03:03]} Be6 {[%emt 0:01:24]} 36. Ra2 {[%emt 0:00:13]} Bf5 {[%emt 0:00:50]} 37. g4 {[%emt 0:00:53]} Re8 {[%emt 0:01:31]} 38. Re2 {[%emt 0:01:04]} Bxd3 {[%emt 0:00:17]} 39. Rd2 {[%emt 0:00:12]} Rxe5 {[%emt 0:01:18]} 40. Rxd3 {[%emt 0:00:07]} Re4 {[%emt 0:00:25]} 41. Rc3 {[%emt 0:30:37]} Kf7 {[%emt 0:30:27]} 42. Kf2 {[%emt 0:00:12]} Ke6 {[%emt 0:01:12]} 43. Kf3 {[%emt 0:01:31]} Ke5 {[%emt 0:00:44]} 44. h4 {[%emt 0:00:22]} Kd4 {[%emt 0:00:00]} 45. Rc1 {[%emt 0:00:00]} Re3+ {[%emt 0:00:00]} 46. Kf4 {[%emt 0:00:00]} Rxa3 {[%emt 0:00:00]} 0-1

[Event "Czech Youth U16 Girls 2024"]
[Site "Kouty nad Desnou"]
[Date "2024.03.10"]
[Round "2.6"]
[White "Kavanova, Anezka"]
[Black "Lackova, Ludmila"]
[Result "1/2-1/2"]
[ECO "C15"]
[WhiteElo "1661"]
[BlackElo "1652"]
[Annotator "NA RC"]
[PlyCount "77"]
[EventDate "2024.03.10"]
[EventType "swiss"]
[EventCountry "CZE"]
[SourceTitle "playchess.com"]
[Source "ChessBase"]
[SourceQuality "1"]
[TimeControl "40/5400+30:1800+30"]

1. e4 {[%emt 0:00:02]} e6 {[%emt 0:00:09]} 2. d4 {[%emt 0:00:04]} d5 {[%emt 0:00:04]} 3. Nc3 {[%emt 0:00:02]} Bb4 {[%emt 0:00:14]} 4. Nge2 {[%emt 0:00:05]} dxe4 {[%emt 0:01:52]} 5. a3 {[%emt 0:00:11]} Bxc3+ {[%emt 0:01:51]} 6. Nxc3 {[%emt 0:00:08]} h6 {[%emt 0:03:23]} 7. Nxe4 {[%emt 0:00:21]} Nf6 {[%emt 0:00:29]} 8. Bd3 {[%emt 0:01:33]} Nbd7 {[%emt 0:04:32]} 9. O-O {[%emt 0:06:08]} O-O {[%emt 0:01:19]} 10. Qf3 {[%emt 0:06:31]} Nxe4 {[%emt 0:16:21]} 11. Bxe4 {[%emt 0:00:30]} Nf6 {[%emt 0:02:01]} 12. Bxb7 {[%emt 0:01:16]} Bxb7 {[%emt 0:00:12]} 13. Qxb7 {[%emt 0:00:06]} Qxd4 {[%emt 0:01:30]} 14. Qxc7 {[%emt 0:00:37]} Rfc8 {[%emt 0:02:16]} 15. Qg3 {[%emt 0:01:07]} Rxc2 {[%emt 0:07:24]} 16. Bxh6 {[%emt 0:04:09]} Ne4 {[%emt 0:02:26]} 17. Qe3 {[%emt 0:00:36]} Qxe3 {[%emt 0:07:04]} 18. Bxe3 {[%emt 0:01:19]} Rxb2 {[%emt 0:00:34]} 19. Bd4 {[%emt 0:02:41]} Rb7 {[%emt 0:01:02]} 20. Rab1 {[%emt 0:08:35]} Rd7 {[%emt 0:02:04]} 21. Be3 {[%emt 0:01:16]} Rad8 {[%emt 0:01:27]} 22. g3 {[%emt 0:01:43]} Nd2 {[%emt 0:01:14]} 23. Bxd2 {[%emt 0:00:10]} Rxd2 {[%emt 0:00:05]} 24. Rb7 {[%emt 0:00:03]} R8d7 {[%emt 0:00:37]} 25. Rfb1 {[%emt 0:00:32]} R2d3 {[%emt 0:01:24]} 26. a4 {[%emt 0:01:17]} R3d5 {[%emt 0:08:45]} 27. Rb8+ {[%emt 0:03:43]} Kh7 {[%emt 0:00:37]} 28. R8b7 {[%emt 0:11:25]} Kg6 {[%emt 0:01:36]} 29. Kf1 {[%emt 0:05:22]} Rxb7 {[%emt 0:01:00]} 30. Rxb7 {[%emt 0:00:07]} Ra5 {[%emt 0:01:21]} 31. Rb4 {[%emt 0:00:07]} f6 {[%emt 0:01:50]} 32. Ke2 {[%emt 0:02:26]} Re5+ {[%emt 0:00:24]} 33. Kd3 {[%emt 0:01:53]} Rf5 {[%emt 0:01:19]} 34. Ke3 {[%emt 0:08:23]} Rc5 {[%emt 0:03:06]} 35. Kd3 {[%emt 0:03:23]} Rf5 {[%emt 0:01:15]} 36. Rg4+ {[%emt 0:03:44]} Kh6 {[%emt 0:01:43]} 37. Ke3 {[%emt 0:00:28]} Rd5 {[%emt 0:01:15]} 38. Re4 {[%emt 0:01:09]} e5 {[%emt 0:04:41]} 39. f4 {[%emt 0:02:08]} 1/2-1/2

[Event "Czech Youth U16 Girls 2024"]
[Site "Kouty nad Desnou"]
[Date "2024.03.10"]
[Round "2.7"]
[White "Holatova, Irena"]
[Black "Zadrapova, Amalie"]
[Result "0-1"]
[ECO "C55"]
[WhiteElo "1608"]
[BlackElo "1857"]
[Annotator "NA RC"]
[PlyCount "96"]
[EventDate "2024.03.10"]
[EventType "swiss"]
[EventCountry "CZE"]
[SourceTitle "playchess.com"]
[Source "ChessBase"]
[SourceQuality "1"]
[TimeControl "40/5400+30:1800+30"]

1. e4 {[%emt 0:00:01]} e5 {[%emt 0:00:04]} 2. Nf3 {[%emt 0:00:06]} Nc6 {[%emt 0:00:08]} 3. d4 {[%emt 0:00:05]} exd4 {[%emt 0:00:06]} 4. Bc4 {[%emt 0:00:04]} Nf6 {[%emt 0:00:11]} 5. e5 {[%emt 0:00:05]} d5 {[%emt 0:00:09]} 6. Bb5 {[%emt 0:00:06]} Ne4 {[%emt 0:00:09]} 7. Nxd4 {[%emt 0:00:09]} Bd7 {[%emt 0:00:08]} 8. Bxc6 {[%emt 0:00:20]} bxc6 {[%emt 0:00:06]} 9. O-O {[%emt 0:00:27]} Bc5 {[%emt 0:00:09]} 10. f3 {[%emt 0:00:40]} Ng5 {[%emt 0:00:08]} 11. f4 {[%emt 0:00:07]} Ne4 {[%emt 0:00:06]} 12. Be3 {[%emt 0:00:29]} Bb6 {[%emt 0:00:14]} 13. Nd2 {[%emt 0:01:22]} Nxd2 {[%emt 0:00:22]} 14. Qxd2 {[%emt 0:00:09]} c5 {[%emt 0:00:25]} 15. Ne2 {[%emt 0:05:22]} d4 {[%emt 0:01:36]} 16. Bf2 {[%emt 0:00:18]} Bc6 {[%emt 0:02:22]} 17. Qd3 {[%emt 0:04:07]} Qd5 {[%emt 0:02:46]} 18. Qf3 {[%emt 0:04:46]} Qxf3 {[%emt 0:02:17]} 19. gxf3 {[%emt 0:00:07]} Bxf3 {[%emt 0:00:20]} 20. Ng3 {[%emt 0:02:51]} Bd5 {[%emt 0:10:35]} 21. c3 {[%emt 0:13:52]} d3 {[%emt 0:08:09]} 22. Rfd1 {[%emt 0:04:51]} c4 {[%emt 0:01:43]} 23. b3 {[%emt 0:06:27]} h5 {[%emt 0:03:42]} 24. bxc4 {[%emt 0:04:21]} Bxc4 {[%emt 0:01:08]} 25. a4 {[%emt 0:03:21]} h4 {[%emt 0:21:17]} 26. Nf5 {[%emt 0:07:55]} g5 {[%emt 0:03:10]} 27. a5 {[%emt 0:05:55]} Bxf2+ {[%emt 0:01:30]} 28. Kxf2 {[%emt 0:00:15]} gxf4 {[%emt 0:02:06]} 29. Kf3 {[%emt 0:01:18]} Rd8 {[%emt 0:03:28]} 30. Rd2 {[%emt 0:02:17]} f6 {[%emt 0:02:39]} 31. exf6 {[%emt 0:02:42]} Kf7 {[%emt 0:01:28]} 32. Kxf4 {[%emt 0:02:03]} Kxf6 {[%emt 0:00:16]} 33. Ne3 {[%emt 0:04:20]} Ba6 {[%emt 0:01:15]} 34. Rg1 {[%emt 0:02:27]} Rhf8 {[%emt 0:05:13]} 35. Rg5 {[%emt 0:04:19]} Bc8 {[%emt 0:06:38]} 36. Nd5+ {[%emt 0:03:19]} Ke6+ {[%emt 0:02:11]} 37. Ke4 {[%emt 0:00:26]} c6 {[%emt 0:02:34]} 38. Rg6+ {[%emt 0:01:35]} Kd7 {[%emt 0:01:22]} 39. Rg7+ {[%emt 0:02:54]} Kd6 {[%emt 0:01:38]} 40. Nf4 {[%emt 0:02:18]} Bf5+ {[%emt 0:01:55]} 41. Kf3 {[%emt 0:32:05]} Kc5 {[%emt 0:37:44]} 42. Rxa7 {[%emt 0:01:38]} Kc4 {[%emt 0:00:56]} 43. Rb7 {[%emt 0:00:45]} Kxc3 {[%emt 0:00:18]} 44. Rbb2 {[%emt 0:00:46]} Rb8 {[%emt 0:01:40]} 45. Ra2 {[%emt 0:04:21]} Rb4 {[%emt 0:03:43]} 46. a6 {[%emt 0:01:54]} Bh7 {[%emt 0:00:00]} 47. a7 {[%emt 0:00:00]} Rbxf4+ {[%emt 0:00:00]} 48. Kg2 {[%emt 0:00:00]} Rg8+ {[%emt 0:00:00]} 0-1

[Event "Czech Youth U16 Girls 2024"]
[Site "Kouty nad Desnou"]
[Date "2024.03.10"]
[Round "2.8"]
[White "Dudkova, Josefina"]
[Black "Souralova, Jana"]
[Result "1-0"]
[ECO "A13"]
[WhiteElo "1796"]
[BlackElo "1597"]
[Annotator "NA RC"]
[PlyCount "51"]
[EventDate "2024.03.10"]
[EventType "swiss"]
[EventCountry "CZE"]
[SourceTitle "playchess.com"]
[Source "ChessBase"]
[SourceQuality "1"]
[TimeControl "40/5400+30:1800+30"]

1. c4 {[%emt 0:00:04]} e6 {[%emt 0:00:24]} 2. Nc3 {[%emt 0:01:13]} d5 {[%emt 0:02:31]} 3. cxd5 {[%emt 0:01:42]} exd5 {[%emt 0:00:07]} 4. d4 {[%emt 0:01:08]} Nf6 {[%emt 0:01:48]} 5. g3 {[%emt 0:00:17]} Bf5 {[%emt 0:02:59]} 6. Bg2 {[%emt 0:01:23]} c6 {[%emt 0:01:23]} 7. Nf3 {[%emt 0:06:55]} Bd6 {[%emt 0:01:58]} 8. O-O {[%emt 0:01:21]} O-O {[%emt 0:00:49]} 9. Nh4 {[%emt 0:09:41]} Qd7 {[%emt 0:06:51]} 10. Nxf5 {[%emt 0:02:53]} Qxf5 {[%emt 0:00:12]} 11. f3 {[%emt 0:05:48]} Qh5 {[%emt 0:10:43]} 12. e4 {[%emt 0:02:52]} dxe4 {[%emt 0:01:36]} 13. Nxe4 {[%emt 0:01:00]} Nxe4 {[%emt 0:00:43]} 14. fxe4 {[%emt 0:00:02]} Qxd1 {[%emt 0:01:04]} 15. Rxd1 {[%emt 0:00:03]} Nd7 {[%emt 0:07:29]} 16. d5 {[%emt 0:14:55]} Rac8 {[%emt 0:08:09]} 17. dxc6 {[%emt 0:04:23]} Rxc6 {[%emt 0:00:17]} 18. e5 {[%emt 0:01:40]} Bc5+ {[%emt 0:00:30]} 19. Kf1 {[%emt 0:00:06]} Rc7 {[%emt 0:00:26]} 20. Bf4 {[%emt 0:04:59]} Nb6 {[%emt 0:05:26]} 21. Rac1 {[%emt 0:03:22]} Rd7 {[%emt 0:10:28]} 22. Rxd7 {[%emt 0:02:36]} Nxd7 {[%emt 0:00:06]} 23. Bh3 {[%emt 0:02:14]} b6 {[%emt 0:03:02]} 24. Bxd7 {[%emt 0:00:55]} Rd8 {[%emt 0:00:24]} 25. Rd1 {[%emt 0:02:48]} Kf8 {[%emt 0:01:22]} 26. Bg5 {[%emt 0:01:42]} 1-0

[Event "Czech Youth U16 Girls 2024"]
[Site "Kouty nad Desnou"]
[Date "2024.03.10"]
[Round "2.9"]
[White "Dlaskova, Eliska"]
[Black "Mikesova, Lenka"]
[Result "0-1"]
[ECO "C44"]
[WhiteElo "1526"]
[BlackElo "1665"]
[Annotator "NA RC"]
[PlyCount "60"]
[EventDate "2024.03.10"]
[EventType "swiss"]
[EventCountry "CZE"]
[SourceTitle "playchess.com"]
[Source "ChessBase"]
[SourceQuality "1"]
[TimeControl "40/5400+30:1800+30"]

1. e4 {[%emt 0:00:03]} e5 {[%emt 0:00:07]} 2. Nf3 {[%emt 0:00:09]} Nc6 {[%emt 0:00:15]} 3. d4 {[%emt 0:00:13]} exd4 {[%emt 0:00:22]} 4. Nxd4 {[%emt 0:00:11]} Nf6 {[%emt 0:00:10]} 5. Nc3 {[%emt 0:00:11]} Bb4 {[%emt 0:00:28]} 6. f3 {[%emt 0:02:33]} O-O {[%emt 0:01:32]} 7. Be2 {[%emt 0:02:37]} d6 {[%emt 0:01:46]} 8. O-O {[%emt 0:02:44]} Nxd4 {[%emt 0:00:08]} 9. Qxd4 {[%emt 0:00:13]} Bc5 {[%emt 0:00:05]} 10. Qxc5 dxc5 {[%emt 0:00:08]} 11. Bg5 {[%emt 0:02:27]} h6 {[%emt 0:01:07]} 12. Rad1 {[%emt 0:00:40]} Qe7 {[%emt 0:05:52]} 13. Nd5 {[%emt 0:00:52]} Qe5 {[%emt 0:00:33]} 14. Bxf6 {[%emt 0:02:44]} gxf6 {[%emt 0:00:13]} 15. c3 {[%emt 0:00:29]} Kg7 {[%emt 0:01:08]} 16. f4 {[%emt 0:00:33]} Qxe4 {[%emt 0:01:21]} 17. Bf3 {[%emt 0:01:15]} Qa4 {[%emt 0:03:09]} 18. Be2 {[%emt 0:04:09]} c6 {[%emt 0:01:43]} 19. Ne3 {[%emt 0:02:17]} Be6 {[%emt 0:02:44]} 20. Rf3 {[%emt 0:02:30]} Rad8 {[%emt 0:01:09]} 21. Rdf1 {[%emt 0:02:51]} f5 {[%emt 0:03:28]} 22. g4 {[%emt 0:03:04]} fxg4 {[%emt 0:02:29]} 23. Rg3 {[%emt 0:00:23]} f5 {[%emt 0:01:29]} 24. h3 {[%emt 0:01:36]} Kh8 {[%emt 0:01:32]} 25. hxg4 {[%emt 0:02:53]} fxg4 {[%emt 0:01:49]} 26. f5 {[%emt 0:01:03]} Bxa2 {[%emt 0:03:57]} 27. Ra1 {[%emt 0:05:09]} Qf4 {[%emt 0:02:25]} 28. Kg2 {[%emt 0:04:33]} Rd2 {[%emt 0:02:05]} 29. Re1 {[%emt 0:02:32]} Bd5+ {[%emt 0:01:08]} 30. Nxd5 {[%emt 0:00:33]} cxd5 {[%emt 0:00:16]} 0-1

[Event "Czech Youth U16 Girls 2024"]
[Site "Kouty nad Desnou"]
[Date "2024.03.10"]
[Round "2.10"]
[White "Stavova, Marketa"]
[Black "Urvalkova, Ema"]
[Result "1/2-1/2"]
[ECO "B31"]
[WhiteElo "1641"]
[BlackElo "1496"]
[Annotator "NA RC"]
[PlyCount "91"]
[EventDate "2024.03.10"]
[EventType "swiss"]
[EventCountry "CZE"]
[SourceTitle "playchess.com"]
[Source "ChessBase"]
[SourceQuality "1"]
[TimeControl "40/5400+30:1800+30"]

1. e4 {[%emt 0:00:04]} c5 {[%emt 0:00:06]} 2. Nf3 {[%emt 0:00:25]} Nc6 {[%emt 0:00:06]} 3. Bb5 {[%emt 0:00:30]} g6 {[%emt 0:00:08]} 4. O-O {[%emt 0:00:30]} Bg7 {[%emt 0:00:07]} 5. Re1 {[%emt 0:00:29]} e5 {[%emt 0:00:29]} 6. b4 {[%emt 0:00:38]} Qb6 {[%emt 0:08:41]} 7. Bxc6 {[%emt 0:02:52]} bxc6 {[%emt 0:00:16]} 8. bxc5 {[%emt 0:01:04]} Qxc5 {[%emt 0:00:40]} 9. Ba3 {[%emt 0:00:46]} Qa5 {[%emt 0:05:07]} 10. Bd6 {[%emt 0:01:51]} Nh6 {[%emt 0:05:29]} 11. Nc3 {[%emt 0:02:36]} f6 {[%emt 0:01:20]} 12. Rb1 {[%emt 0:01:59]} Nf7 {[%emt 0:01:08]} 13. Bb4 {[%emt 0:00:40]} Qd8 {[%emt 0:00:30]} 14. d4 {[%emt 0:02:55]} d6 {[%emt 0:03:21]} 15. dxe5 {[%emt 0:01:10]} fxe5 {[%emt 0:00:36]} 16. Qd3 {[%emt 0:03:15]} O-O {[%emt 0:02:16]} 17. Ba3 {[%emt 0:02:05]} c5 {[%emt 0:04:05]} 18. Nd5 {[%emt 0:02:49]} Be6 {[%emt 0:02:05]} 19. c4 {[%emt 0:00:46]} Bxd5 {[%emt 0:06:42]} 20. exd5 {[%emt 0:02:10]} a6 {[%emt 0:01:43]} 21. Bc1 {[%emt 0:01:20]} Qa5 {[%emt 0:01:31]} 22. Qc2 {[%emt 0:02:56]} Rab8 {[%emt 0:03:06]} 23. Bd2 {[%emt 0:00:44]} Qc7 {[%emt 0:02:07]} 24. Qa4 {[%emt 0:03:05]} Qa7 {[%emt 0:04:03]} 25. Rb3 {[%emt 0:02:45]} Rxb3 {[%emt 0:03:07]} 26. axb3 {[%emt 0:00:10]} Qb7 {[%emt 0:02:08]} 27. Rb1 {[%emt 0:02:49]} Rb8 {[%emt 0:03:34]} 28. Qa2 {[%emt 0:01:18]} e4 {[%emt 0:02:16]} 29. Ng5 {[%emt 0:01:12]} Nxg5 {[%emt 0:01:06]} 30. Bxg5 {[%emt 0:00:06]} Bd4 {[%emt 0:00:55]} 31. Qe2 {[%emt 0:01:23]} Re8 {[%emt 0:01:12]} 32. Be3 {[%emt 0:00:55]} a5 {[%emt 0:01:48]} 33. Bxd4 {[%emt 0:02:08]} cxd4 {[%emt 0:00:11]} 34. Qd2 {[%emt 0:00:42]} Qb6 {[%emt 0:01:43]} 35. b4 {[%emt 0:01:43]} e3 {[%emt 0:07:47]} 36. fxe3 {[%emt 0:00:49]} dxe3 {[%emt 0:00:16]} 37. Qe2 {[%emt 0:00:36]} axb4 {[%emt 0:00:48]} 38. Rb3 {[%emt 0:00:40]} Re4 {[%emt 0:02:43]} 39. g3 {[%emt 0:02:37]} Qc5 {[%emt 0:06:38]} 40. Kf1 {[%emt 0:01:32]} Rxc4 {[%emt 0:02:02]} 41. Qxe3 {[%emt 0:30:16]} Rc1+ {[%emt 0:30:50]} 42. Kf2 {[%emt 0:04:13]} Qc2+ {[%emt 0:02:34]} 43. Qe2 {[%emt 0:00:31]} Qxb3 {[%emt 0:02:55]} 44. Qe8+ {[%emt 0:00:27]} Kg7 {[%emt 0:00:10]} 45. Qe7+ {[%emt 0:00:12]} Kh6 {[%emt 0:01:42]} 46. Qh4+ {[%emt 0:00:17]} 1/2-1/2

[Event "Czech Youth U16 Girls 2024"]
[Site "Kouty nad Desnou"]
[Date "2024.03.11"]
[Round "3.1"]
[White "Brezikova, Beata"]
[Black "Vacekova, Anita"]
[Result "1-0"]
[ECO "C58"]
[WhiteElo "1804"]
[BlackElo "1783"]
[Annotator "NA RC"]
[PlyCount "107"]
[EventDate "2024.03.10"]
[EventType "swiss"]
[EventCountry "CZE"]
[SourceTitle "playchess.com"]
[Source "ChessBase"]
[SourceQuality "1"]
[TimeControl "40/5400+30:1800+30"]

1. e4 {[%emt 0:00:01]} e5 {[%emt 0:00:13]} 2. Nf3 {[%emt 0:00:04]} Nc6 {[%emt 0:00:05]} 3. Bc4 {[%emt 0:00:06]} Nf6 {[%emt 0:00:29]} 4. Ng5 {[%emt 0:00:20]} d5 {[%emt 0:00:15]} 5. exd5 {[%emt 0:00:13]} Na5 {[%emt 0:00:26]} 6. Bb5+ {[%emt 0:00:19]} c6 {[%emt 0:00:23]} 7. dxc6 {[%emt 0:00:14]} bxc6 {[%emt 0:00:14]} 8. Qf3 {[%emt 0:00:46]} Bd7 {[%emt 0:07:10]} 9. Bd3 {[%emt 0:03:34] C58: Two Knights: 4 Ng5 d5 5 exd5 Na5 sidelines.} h6 {[%emt 0:06:20]} 10. Ne4 {[%emt 0:01:32]} Be7 {[%emt 0:07:36]} 11. O-O {[%emt 0:04:45]} O-O {[%emt 0:07:43]} 12. Nxf6+ {[%emt 0:04:36]} Bxf6 {[%emt 0:01:03]} 13. Nc3 {[%emt 0:00:42]} g6 {[%emt 0:04:31]} 14. Be2 {[%emt 0:08:51]} Nb7 {[%emt 0:06:38]} 15. d3 {[%emt 0:04:00]} Bg7 {[%emt 0:01:45]} 16. Qg3 {[%emt 0:02:38]} Nd6 {[%emt 0:05:13]} 17. f4 {[%emt 0:11:10]} Nf5 {[%emt 0:08:46]} 18. Qf2 {[%emt 0:04:55]} exf4 {[%emt 0:06:47]} 19. Qxf4 {[%emt 0:01:52]} Re8 {[%emt 0:01:40]} 20. Bg4 {[%emt 0:10:21]} Be5 {[%emt 0:10:33]} 21. Qf3 {[%emt 0:05:21]} h5 {[%emt 0:05:18]} 22. Bh3 {[%emt 0:02:38]} Qb6+ {[%emt 0:02:31]} 23. Kh1 {[%emt 0:01:32]} c5 {[%emt 0:00:39]} 24. Ne4 {[%emt 0:04:23]} Rf8 {[%emt 0:05:09]} (24... Qc6 $14) 25. Qf2 {[%emt 0:09:51]} Bd4 {[%emt 0:03:30]} 26. Qe1 {[%emt 0:01:26]} f6 {[%emt 0:01:35]} 27. c3 {[%emt 0:03:58]} Be5 {[%emt 0:00:21]} 28. Qf2 {[%emt 0:01:00]} Rac8 {[%emt 0:01:51]} 29. Rb1 {[%emt 0:01:52]} Bb5 {[%emt 0:01:47]} 30. Bxf5 {[%emt 0:06:22]} gxf5 {[%emt 0:02:50]} 31. Qxf5 {[%emt 0:00:25]} Bxd3 {[%emt 0:01:11]} 32. Qg6+ {[%emt 0:00:44]} Kh8 {[%emt 0:00:09]} 33. Qxh5+ {[%emt 0:00:16]} Kg8 {[%emt 0:00:24]} 34. Qg6+ {[%emt 0:01:04]} Kh8 {[%emt 0:00:14]} 35. Rf3 {[%emt 0:01:19]} Qe6 {[%emt 0:01:34]} 36. Rh3+ {[%emt 0:02:06]} Qxh3 {[%emt 0:00:10]} 37. gxh3 {[%emt 0:00:07]} Bxb1 {[%emt 0:00:47]} 38. Qh5+ {[%emt 0:01:09]} Kg8 {[%emt 0:00:24]} 39. Ng3 {[%emt 0:01:23]} Bxg3 {[%emt 0:01:06]} (39... Rb8 $16 40. a4 Rfd8) 40. hxg3 {[%emt 0:00:33]} Rfe8 {[%emt 0:00:16]} 41. Bh6 {[%emt 0:31:33]} Re1+ {[%emt 0:30:49]} 42. Kg2 {[%emt 0:00:31]} Rce8 {[%emt 0:00:25]} 43. Qg4+ {[%emt 0:00:00]} Kf7 {[%emt 0:00:00]} 44. Qg7+ {[%emt 0:00:00]} Ke6 {[%emt 0:00:00]} 45. Qxa7 {[%emt 0:00:00]} Kd5 $2 {[%emt 0:00:00]} (45... Be4+ $18 46. Kf2 Rh1) 46. Qf7+ $2 {[%emt 0:00:00]} (46. Qd7+ {mates} Ke5 47. Qxe8+ Kd6 48. Qxe1 Bg6 49. Bf8+ Kd5 50. Qd2+ Kc6 51. Qd6+ Kb7 52. Qd7+ (52. Qxf6 Be4+ 53. Kh2 Bd5 54. Bxc5 Be4 55. Qe7+ Kc6 56. Qd6+ Kb7 57. Qd7+ Kb8 58. Bd6+ Ka8 59. Qc8+ Ka7 60. Bc5#) (52. Qd5+ Kc7 53. Bd6+ Kd7 54. Bf4+ Ke7 55. Qd6+ Ke8 56. Qe6+ Kd8 57. Bd6 Be4+ 58. Kf2 Bg6 59. Qe7+ Kc8 60. Qc7#) 52... Kb6 53. Bd6) 46... R8e6 {[%emt 0:00:00]} 47. Qb7+ $18 {[%emt 0:00:00]} (47. Qd7+ $142 Rd6 48. c4+ Kxc4 49. Qxd6 Re2+ 50. Kf3 Rxb2 51. Qxf6) 47... Rc6 {[%emt 0:00:00]} 48. c4+ {[%emt 0:00:00]} Kd4 {[%emt 0:00:00]} 49. Qd7+ {[%emt 0:00:00]} Kxc4 {[%emt 0:00:00]} 50. b3+ {[%emt 0:00:00]} Kb5 {[%emt 0:00:00]} 51. Qb7+ {[%emt 0:00:00]} Rb6 {[%emt 0:00:00]} 52. a4+ {[%emt 0:00:00]} Kb4 {[%emt 0:00:00]} 53. Qxb6+ {[%emt 0:00:00]} Kc3 {[%emt 0:00:00]} 54. Qa5+ {[%emt 0:00:00]} 1-0